Workbook

Sheet 負荷原単位
B1: １．熱負荷の想定
G2: ：入力データ | U2: （参考資料）
B3: （１）建物概要 | U3: ■熱負荷原単位 | AL3: ■全負荷相当運転時間
H4: ☆地域No.と地域係数表
B5: 地域No. | C5: 4 | H5: 地域No. | I5: 地域 | J5: 最大熱負荷 | L5: 年間熱負荷
J6: 冷房 | K6: 暖房 | L6: 冷房 | M6: 暖房
H7: 1 | I7: 北海道 | J7: 0.8 | K7: 1.5 | L7: 0.5 | M7: 2.4
B8: 建物用途 | D8: 延床面積 | E8: 稼働率 | H8: 2 | I8: 東北 | J8: 0.9 | K8: 1.3 | L8: 0.7 | M8: 1.4
D9: m2 | E9: 註１） | H9: 3 | I9: 北陸 | J9: 1 | K9: 1.1 | L9: 0.9 | M9: 1.4
B10: 業務施設 | D10: 20000 | E10: 1 | H10: 4 | I10: 関東 | J10: 1 | K10: 1 | L10: 1 | M10: 1
B11: 宿泊施設 | H11: 5 | I11: 東海 | J11: 1 | K11: 1 | L11: 1.1 | M11: 0.9
B12: 商業施設 | H12: 6 | I12: 近畿 | J12: 1 | K12: 1 | L12: 1.1 | M12: 0.9
B13: 医療施設 | H13: 7 | I13: 中国 | J13: 1 | K13: 1 | L13: 1.1 | M13: 0.9
B14: 集合住宅 | H14: 8 | I14: 四国 | J14: 1 | K14: 1 | L14: 1.1 | M14: 0.9
H15: 9 | I15: 九州 | J15: 1 | K15: 1 | L15: 1.2 | M15: 0.7
B16: 合計 | D16: =SUM(D10:D15) -> 20000 | E16: － | H16: 10 | I16: 沖縄 | J16: 1.1 | K16: 0.5 | L16: 1.5 | M16: 0.07
B17: 註１）稼働率を乗じて計算する。(通常は1.0) | H17: 出典）低炭素まちづくり実践ハンドブック 国土交通省
H18: 註）負荷原単位に地域係数を乗じて計算する。
B20: （２）負荷原単位
D22: ﾋﾟ-ｸ負荷(W/m2) | F22: 全負荷相当 | G22: 年間負荷(単位/年) | J22: 出典
D23: 設計値 | E23: ×稼働率 | F23: 時間 h | G23: 設計値 | H23: ×稼働率 | I23: 単位
C24: 電力 | D24: 53 | E24: =D24*$E$10 -> 53 | F24: =IF(E24=0,0,H24/E24*1000) -> 2943.396226 | G24: 156 | H24: =G24*$E$10 -> 156 | I24: kWh/m2
B25: 業務施設 | C25: 冷房 | D25: 117 | E25: =D25*$E$10 -> 117 | F25: =IF(E25=0,0,H25/E25*1000/3.6) -> 695.631529 | G25: 293 | H25: =G25*$E$10 -> 293 | I25: MJ/m2 | J25: cgs
C26: 暖房 | D26: 70 | E26: =D26*$E$10 -> 70 | F26: =IF(E26=0,0,H26/E26*1000/3.6) -> 515.8730159 | G26: 130 | H26: =G26*$E$10 -> 130 | I26: MJ/m2
C27: 給湯 | D27: 4.8 | E27: =D27*$E$10 -> 4.8 | F27: =IF(E27=0,0,H27/E27*1000/3.6) -> 543.9814815 | G27: 9.4 | H27: =G27*$E$10 -> 9.4 | I27: MJ/m2
C28: 電力 | D28: 50 | E28: =D28*$E$11 -> 0 | F28: =IF(E28=0,0,H28/E28*1000) -> 0 | G28: 200 | H28: =G28*E11 -> 0 | I28: kWh/m2
B29: 宿泊施設 | C29: 冷房 | D29: 87 | E29: =D29*$E$11 -> 0 | F29: =IF(E29=0,0,H29/E29*1000/3.6) -> 0 | G29: 419 | H29: =G29*E11 -> 0 | I29: MJ/m2 | J29: cgs
C30: 暖房 | D30: 78 | E30: =D30*$E$11 -> 0 | F30: =IF(E30=0,0,H30/E30*1000/3.6) -> 0 | G30: 335 | H30: =G30*E11 -> 0 | I30: MJ/m2
C31: 給湯 | D31: 50 | E31: =D31*$E$11 -> 0 | F31: =IF(E31=0,0,H31/E31*1000/3.6) -> 0 | G31: 335 | H31: =G31*E11 -> 0 | I31: MJ/m2
C32: 電力 | D32: 80 | E32: =D32*$E$12 -> 0 | F32: =IF(E32=0,0,H32/E32*1000) -> 0 | G32: 226 | H32: =G32*$E$12 -> 0 | I32: kWh/m2 | AL32: 出典) 地域冷暖房技術手引書 p.335より抜粋
B33: 商業施設 | C33: 冷房 | D33: 140 | E33: =D33*$E$12 -> 0 | F33: =IF(E33=0,0,H33/E33*1000/3.6) -> 0 | G33: 523 | H33: =G33*$E$12 -> 0 | I33: MJ/m2 | J33: cgs
C34: 暖房 | D34: 93 | E34: =D34*$E$12 -> 0 | F34: =IF(E34=0,0,H34/E34*1000/3.6) -> 0 | G34: 147 | H34: =G34*$E$12 -> 0 | I34: MJ/m2
C35: 給湯 | D35: 23 | E35: =D35*$E$12 -> 0 | F35: =IF(E35=0,0,H35/E35*1000/3.6) -> 0 | G35: 96 | H35: =G35*$E$12 -> 0 | I35: MJ/m2
C36: 電力 | D36: 50 | E36: =D36*$E$13 -> 0 | F36: =IF(E36=0,0,H36/E36*1000) -> 0 | G36: 170 | H36: =G36*$E$13 -> 0 | I36: kWh/m2
B37: 医療施設 | C37: 冷房 | D37: 105 | E37: =D37*$E$13 -> 0 | F37: =IF(E37=0,0,H37/E37*1000/3.6) -> 0 | G37: 335 | H37: =G37*$E$13 -> 0 | I37: MJ/m2 | J37: cgs
C38: 暖房 | D38: 105 | E38: =D38*$E$13 -> 0 | F38: =IF(E38=0,0,H38/E38*1000/3.6) -> 0 | G38: 310 | H38: =G38*$E$13 -> 0 | I38: MJ/m2
C39: 給湯 | D39: 47 | E39: =D39*$E$13 -> 0 | F39: =IF(E39=0,0,H39/E39*1000/3.6) -> 0 | G39: 335 | H39: =G39*$E$13 -> 0 | I39: MJ/m2
C40: 電力 | D40: 30 | E40: =D40*$E$14 -> 0 | F40: =IF(E40=0,0,H40/E40*1000) -> 0 | G40: 50 | H40: =G40*$E$14 -> 0 | I40: kWh/m2
B41: 集合住宅 | C41: 冷房 | D41: 47 | E41: =D41*$E$14 -> 0 | F41: =IF(E41=0,0,H41/E41*1000/3.6) -> 0 | G41: 33 | H41: =G41*$E$14 -> 0 | I41: MJ/m2 | J41: cgs
C42: 暖房 | D42: 35 | E42: =D42*$E$14 -> 0 | F42: =IF(E42=0,0,H42/E42*1000/3.6) -> 0 | G42: 84 | H42: =G42*$E$14 -> 0 | I42: MJ/m2
C43: 給湯 | D43: 27 | E43: =D43*$E$14 -> 0 | F43: =IF(E43=0,0,H43/E43*1000/3.6) -> 0 | G43: 126 | H43: =G43*$E$14 -> 0 | I43: MJ/m2 | K43: 出典） | L43: cgs | M43: 都市ガスによるコージェネレーションシステム計画・設計と評価 （公社）空気調和・衛生工学会
C44: 電力 | E44: =D44*$E$15 -> 0 | F44: =IF(E44=0,0,H44/E44*1000) -> 0 | H44: =G44*$E$15 -> 0 | I44: kWh/m2 | L44: dhc | M44: 地域冷暖房技術手引書 （一社）都市環境エネルギー協会
C45: 冷房 | E45: =D45*$E$15 -> 0 | F45: =IF(E45=0,0,H45/E45*1000/3.6) -> 0 | H45: =G45*$E$15 -> 0 | I45: MJ/m2 | M45: to | N45: 東京都平均
C46: 暖房 | E46: =D46*$E$15 -> 0 | F46: =IF(E46=0,0,H46/E46*1000/3.6) -> 0 | H46: =G46*$E$15 -> 0 | I46: MJ/m2 | M46: ku | N46: 空衛学会
C47: 給湯 | E47: =D47*$E$15 -> 0 | F47: =IF(E47=0,0,H47/E47*1000/3.6) -> 0 | H47: =G47*$E$15 -> 0 | I47: MJ/m2 | L47: decc | M47: 建物用途別負荷原単位及び未利用エネルギーデータの整備 空気調和・衛生工学会論文集 No.239, 2017年2月 より作成.
B48: 註）赤字の負荷原単位： 全負荷相当時間等を考慮し調整した。 | AA48: 出典）空気調和・衛生工学便覧第14版 ３空気調和設備設計編 p.319より抜粋
B52: （３）負荷パタ－ン
B54: １）月別負荷パタ－ン
B56: 月 | E56: 業務施設 | J56: 宿泊施設 | O56: 商業施設 | T56: 医療施設 | Y56: 集合住宅
C57: 日数 | D57: 電力 | E57: 冷房 | F57: 暖房 | G57: 給湯 | H57: 日数 | I57: 電力 | J57: 冷房 | K57: 暖房 | L57: 給湯 | M57: 日数 | N57: 電力 | O57: 冷房 | P57: 暖房 | Q57: 給湯 | R57: 日数 | S57: 電力 | T57: 冷房 | U57: 暖房 | V57: 給湯 | W57: 日数 | X57: 電力 | Y57: 冷房 | Z57: 暖房 | AA57: 給湯 | AB57: 日数 | AC57: 電力 | AD57: 冷房 | AE57: 暖房 | AF57: 給湯
B58: 1 | C58: 23 | D58: 7.15 | E58: 0 | F58: 26.26387176 | G58: 6.666666667 | H58: 24 | I58: 8.121827411 | J58: 0.8 | K58: 20.57 | L58: 10.14 | M58: 27 | N58: 7.11 | O58: 1.2 | P58: 32.8 | Q58: 7.66 | R58: 23 | S58: 7.94 | T58: 1.500625261 | U58: 27.49 | V58: 9.51 | W58: 22 | X58: 10.03 | Y58: 0 | Z58: 24.06 | AA58: 12.1 | AB58: 31
B59: =B58+1 -> 2 | C59: 23 | D59: 7.43 | E59: 0 | F59: 22.81134402 | G59: 6.666666667 | H59: 21 | I59: 7.670614777 | J59: 0.8 | K59: 17.87 | L59: 10.07 | M59: 24 | N59: 7.11 | O59: 1.5 | P59: 29.64 | Q59: 8.02 | R59: 22 | S59: 7.41 | T59: 1.375573155 | U59: 21.2 | V59: 9.98 | W59: 19 | X59: 8.63 | Y59: 0 | Z59: 20.03 | AA59: 10.8 | AB59: 28
B60: 3 | C60: 25 | D60: 8.15 | E60: 0 | F60: 18.74229346 | G60: 13.33333333 | H60: 24 | I60: 7.896221094 | J60: 1 | K60: 14.41 | L60: 9.51 | M60: 27 | N60: 7.67 | O60: 2.1 | P60: 15.87 | Q60: 9.17 | R60: 24 | S60: 8.11 | T60: 1.792413506 | U60: 19.92 | V60: 10.05 | W60: 21 | X60: 8.87 | Y60: 0 | Z60: 20.08 | AA60: 9.9 | AB60: 31
B61: 4 | C61: 24 | D61: 7.9 | E61: 0 | F61: 9.001233046 | G61: 16 | H61: 23 | I61: 8.009024253 | J61: 3.2 | K61: 12.48 | L61: 8.65 | M61: 26 | N61: 7.9 | O61: 4.3 | P61: 0 | Q61: 9.07 | R61: 23 | S61: 7.64 | T61: 1.792413506 | U61: 2.67 | V61: 9.85 | W61: 20 | X61: 8.47 | Y61: 0 | Z61: 8.11 | AA61: 10 | AB61: 30
B62: 5 | C62: 22 | D62: 8.03 | E62: 3.92 | F62: 0 | G62: 6.666666667 | H62: 24 | I62: 8.23463057 | J62: 8.2 | K62: 3.07 | L62: 7.78 | M62: 27 | N62: 8.96 | O62: 9.6 | P62: 0 | Q62: 7.83 | R62: 23 | S62: 7.79 | T62: 5.293872447 | U62: 0 | V62: 8.09 | W62: 22 | X62: 7.78 | Y62: 0 | Z62: 0 | AA62: 8.1 | AB62: 31
B63: 6 | C63: 25 | D63: 8.95 | E63: 15.67 | F63: 0 | G63: 6.666666667 | H63: 23 | I63: 8.460236887 | J63: 13.4 | K63: 0 | L63: 7.33 | M63: 27 | N63: 9.33 | O63: 14.2 | P63: 0 | Q63: 7.26 | R63: 23 | S63: 8.45 | T63: 11.58816173 | U63: 0 | V63: 7.88 | W63: 20 | X63: 6.86 | Y63: 7.96 | Z63: 0 | AA63: 6.5 | AB63: 30
B64: 7 | C64: 26 | D64: 10.07 | E64: 27.63 | F64: 0 | G64: 6.666666667 | H64: 23 | I64: 8.798646362 | J64: 20.2 | K64: 0 | L64: 7.33 | M64: 27 | N64: 9.42 | O64: 15.8 | P64: 0 | Q64: 7.99 | R64: 25 | S64: 9.33 | T64: 21.25885786 | U64: 0 | V64: 7.13 | W64: 20 | X64: 8.17 | Y64: 32.14 | Z64: 0 | AA64: 6.1 | AB64: 31
B65: 8 | C65: 23 | D65: 9.87 | E65: 30.72 | F65: 0 | G65: 6.666666667 | H65: 24 | I65: 9.080654258 | J65: 24.3 | K65: 0 | L65: 6.23 | M65: 27 | N65: 8.91 | O65: 22.5 | P65: 0 | Q65: 7.84 | R65: 24 | S65: 10.06 | T65: 26.88620258 | U65: 0 | V65: 5.54 | W65: 21 | X65: 9.49 | Y65: 47.76 | Z65: 0 | AA65: 4.9 | AB65: 31
B66: 9 | C66: 23 | D66: 8.89 | E66: 19.79 | F66: 0 | G66: 6.666666667 | H66: 23 | I66: 8.685843204 | J66: 16.5 | K66: 0 | L66: 7.02 | M66: 27 | N66: 9.45 | O66: 15.4 | P66: 0 | Q66: 8.12 | R66: 23 | S66: 8.85 | T66: 18.17423927 | U66: 0 | V66: 5.76 | W66: 21 | X66: 8.28 | Y66: 12.14 | Z66: 0 | AA66: 5 | AB66: 30
B67: 10 | C67: 25 | D67: 8.66 | E67: 2.27 | F67: 0 | G67: 6.666666667 | H67: 24 | I67: 8.516638466 | J67: 8 | K67: 0 | L67: 7.58 | M67: 27 | N67: 8.74 | O67: 8.3 | P67: 0 | Q67: 7.62 | R67: 24 | S67: 8.41 | T67: 6.461025427 | U67: 0 | V67: 7.88 | W67: 21 | X67: 7.66 | Y67: 0 | Z67: 0 | AA67: 6.3 | AB67: 31
B68: 11 | C68: 23 | D68: 7.22 | E68: 0 | F68: 7.768187423 | G68: 12 | H68: 23 | I68: 8.23463057 | J68: 2.5 | K68: 12.77 | L68: 8.72 | M68: 26 | N68: 7.49 | O68: 3.1 | P68: 0 | Q68: 9.07 | R68: 23 | S68: 8.15 | T68: 2.250937891 | U68: 8.65 | V68: 8.19 | W68: 20 | X68: 7.64 | Y68: 0 | Z68: 8.95 | AA68: 8.2 | AB68: 30
B69: 12 | C69: 24 | D69: 7.68 | E69: 0 | F69: 15.41307028 | G69: 5.333333333 | H69: 24 | I69: 8.291032149 | J69: 1.1 | K69: 18.83 | L69: 9.64 | M69: 27 | N69: 7.91 | O69: 2 | P69: 21.69 | Q69: 10.35 | R69: 24 | S69: 7.86 | T69: 1.625677366 | U69: 20.07 | V69: 10.14 | W69: 21 | X69: 8.12 | Y69: 0 | Z69: 18.77 | AA69: 12.1 | AB69: 31
B70: 年間 | C70: =SUM(C58:C69) -> 286 | D70: 100 | E70: 100 | F70: 100 | G70: 100 | H70: 280 | I70: 100 | J70: 100 | K70: 100 | L70: 100 | M70: 319 | N70: 100 | O70: 100 | P70: 100 | Q70: 100 | R70: 281 | S70: 100 | T70: 100 | U70: 100 | V70: 100 | W70: 248 | X70: 100 | Y70: 100 | Z70: 100 | AA70: 100 | AB70: 365 | AC70: 0 | AD70: 0 | AE70: 0 | AF70: 0
B71: 出典 | D71: ku | E71: ku | F71: decc | G71: decc | I71: decc | J71: to | K71: ku | L71: ku | N71: ku | O71: to | P71: ku | Q71: ku | S71: ku | T71: decc | U71: ku | V71: ku | X71: ku | Y71: ku | Z71: ku | AA71: to
B72: 註）日数は各月代表日を算出すための仮定値。
B75: ２）時刻別負荷パタ－ン
B77: 時刻 | D77: 業務施設 | H77: 宿泊施設 | L77: 商業施設 | P77: 医療施設 | T77: 集合住宅
C78: 電力 | D78: 冷房 | E78: 暖房 | F78: 給湯 | G78: 電力 | H78: 冷房 | I78: 暖房 | J78: 給湯 | K78: 電力 | L78: 冷房 | M78: 暖房 | N78: 給湯 | O78: 電力 | P78: 冷房 | Q78: 暖房 | R78: 給湯 | S78: 電力 | T78: 冷房 | U78: 暖房 | V78: 給湯 | W78: 電力 | X78: 冷房 | Y78: 暖房 | Z78: 給湯
B79: 1 | C79: 0.73 | D79: 0 | E79: 0 | F79: 0 | G79: 2.54 | H79: 2.5 | I79: 3.05 | J79: 2.37 | K79: 0.1 | L79: 0 | M79: 0 | N79: 0 | O79: 2.09 | P79: 1.6 | Q79: 0.2 | R79: 0.58 | S79: 1.3 | T79: 0.3 | U79: 4 | V79: 2.7
B80: =B79+1 -> 2 | C80: 0.69 | D80: 0 | E80: 0 | F80: 0 | G80: 2.41 | H80: 2.5 | I80: 3.43 | J80: 1.43 | K80: 0.1 | L80: 0 | M80: 0 | N80: 0 | O80: 2.04 | P80: 1.6 | Q80: 0.3 | R80: 0.45 | S80: 1.3 | T80: 0.3 | U80: 2.6 | V80: 0.3
B81: 3 | C81: 0.69 | D81: 0 | E81: 0 | F81: 0 | G81: 2.41 | H81: 2.1 | I81: 3.81 | J81: 0.64 | K81: 0.1 | L81: 0 | M81: 0 | N81: 0 | O81: 2 | P81: 1.5 | Q81: 0.3 | R81: 0.35 | S81: 1.3 | T81: 0.3 | U81: 1.8 | V81: 0.2
B82: 4 | C82: 0.69 | D82: 0 | E82: 0 | F82: 0 | G82: 2.38 | H82: 1.7 | I82: 3.43 | J82: 0.38 | K82: 0.1 | L82: 0 | M82: 0 | N82: 0 | O82: 2.06 | P82: 1.5 | Q82: 0.3 | R82: 0.29 | S82: 0.8 | T82: 0.3 | U82: 1.8 | V82: 0
B83: 5 | C83: 0.69 | D83: 0 | E83: 0 | F83: 0 | G83: 2.53 | H83: 1.6 | I83: 3.05 | J83: 0.73 | K83: 0.1 | L83: 0 | M83: 0 | N83: 0 | O83: 2.15 | P83: 1.5 | Q83: 0.3 | R83: 0.48 | S83: 0.8 | T83: 0.3 | U83: 1.8 | V83: 0
B84: 6 | C84: 0.88 | D84: 0 | E84: 0 | F84: 0 | G84: 3.14 | H84: 2.2 | I84: 3.05 | J84: 2.35 | K84: 0.3 | L84: 0 | M84: 0 | N84: 0 | O84: 3.02 | P84: 3.4 | Q84: 5.1 | R84: 1.45 | S84: 2.6 | T84: 0.3 | U84: 2.3 | V84: 0.3
B85: 7 | C85: 1.86 | D85: 0 | E85: 0.3 | F85: 1.97 | G85: 3.58 | H85: 2.8 | I85: 3.24 | J85: 4.64 | K85: 1 | L85: 0 | M85: 0 | N85: 0 | O85: 4.32 | P85: 2.6 | Q85: 4.7 | R85: 0.97 | S85: 3.6 | T85: 1.4 | U85: 3.1 | V85: 2
B86: 8 | C86: 5.61 | D86: 1.79 | E86: 16.99 | F86: 0.33 | G86: 4 | H86: 3.6 | I86: 4.19 | J86: 4.53 | K86: 6.39 | L86: 7.9 | M86: 0 | N86: 0 | O86: 5.43 | P86: 2.8 | Q86: 4.7 | R86: 0.39 | S86: 4 | T86: 1.9 | U86: 5.6 | V86: 3.5
B87: 9 | C87: 7.32 | D87: 9.57 | E87: 12.29 | F87: 1.64 | G87: 4.79 | H87: 4.4 | I87: 5.71 | J87: 3.97 | K87: 9.09 | L87: 7.3 | M87: 16.9 | N87: 1.25 | O87: 5.94 | P87: 6.4 | Q87: 10.3 | R87: 7.58 | S87: 3.5 | T87: 2.3 | U87: 4.4 | V87: 2.9
B88: 10 | C88: 7.64 | D88: 9.17 | E88: 8.09 | F88: 6.57 | G88: 5.17 | H88: 4.9 | I88: 4.95 | J88: 3.8 | K88: 8.89 | L88: 8.3 | M88: 12.8 | N88: 9.17 | O88: 6.07 | P88: 6.3 | Q88: 8.3 | R88: 9.39 | S88: 3.5 | T88: 2.4 | U88: 4.5 | V88: 3.5
B89: 11 | C89: 7.66 | D89: 8.97 | E89: 10.29 | F89: 5.75 | G89: 5.31 | H89: 5.1 | I89: 5.14 | J89: 4.51 | K89: 8.89 | L89: 8.7 | M89: 10.3 | N89: 10.1 | O89: 6.05 | P89: 6.6 | Q89: 7.5 | R89: 10.07 | S89: 3.6 | T89: 3.1 | U89: 2.7 | V89: 2.9
B90: 12 | C90: 7.71 | D90: 9.27 | E90: 10.49 | F90: 14.78 | G90: 5.55 | H90: 5.5 | I90: 4.95 | J90: 3.25 | K90: 8.89 | L90: 10 | M90: 9.4 | N90: 2.5 | O90: 5.9 | P90: 6.8 | Q90: 6.9 | R90: 8.1 | S90: 3.8 | T90: 4.1 | U90: 4 | V90: 2.6
B91: 13 | C91: 7.78 | D91: 9.37 | E91: 10.29 | F91: 12.48 | G91: 5.45 | H91: 5.6 | I91: 4.95 | J91: 3.59 | K91: 9.09 | L91: 10.2 | M91: 7.5 | N91: 8.41 | O91: 5.94 | P91: 6.9 | Q91: 6.4 | R91: 8.9 | S91: 4.1 | T91: 6.1 | U91: 3.9 | V91: 2.1
B92: 14 | C92: 7.82 | D92: 9.27 | E92: 8.39 | F92: 27.09 | G92: 5.25 | H92: 5.4 | I92: 5.14 | J92: 4.08 | K92: 9.3 | L92: 11.2 | M92: 6.9 | N92: 17.15 | O92: 6.06 | P92: 6.1 | Q92: 5.2 | R92: 9.52 | S92: 4.1 | T92: 6.7 | U92: 3.9 | V92: 2.1
B93: 15 | C93: 7.75 | D93: 8.97 | E93: 8.19 | F93: 8.7 | G93: 5.31 | H93: 5.4 | I93: 4.95 | J93: 3.8 | K93: 9.29 | L93: 11.2 | M93: 5.6 | N93: 17.12 | O93: 5.92 | P93: 6.1 | Q93: 5 | R93: 8.71 | S93: 3.9 | T93: 5.2 | U93: 3.9 | V93: 1.8
B94: 16 | C94: 7.68 | D94: 10.69 | E94: 9.09 | F94: 4.43 | G94: 5.24 | H94: 5.3 | I94: 6.1 | J94: 3.95 | K94: 9.19 | L94: 9.6 | M94: 5.4 | N94: 5.36 | O94: 5.7 | P94: 6.3 | Q94: 4.8 | R94: 6.87 | S94: 3.7 | T94: 4.4 | U94: 4.1 | V94: 1.8
B95: 17 | C95: 6.63 | D95: 8.97 | E95: 5.59 | F95: 4.27 | G95: 5.31 | H95: 5.4 | I95: 7.24 | J95: 4.23 | K95: 8.89 | L95: 8 | M95: 7.3 | N95: 3.67 | O95: 5.23 | P95: 6.3 | Q95: 4.9 | R95: 5.65 | S95: 3.8 | T95: 4.7 | U95: 4.1 | V95: 3.6
B96: 18 | C96: 5.5 | D96: 9.27 | E96: 0 | F96: 4.27 | G96: 5.28 | H96: 5.5 | I96: 6.86 | J96: 4.68 | K96: 7.89 | L96: 7.6 | M96: 8.8 | N96: 10.54 | O96: 4.94 | P96: 6.2 | Q96: 5 | R96: 5.77 | S96: 5.6 | T96: 4.7 | U96: 5.7 | V96: 7.2
B97: 19 | C97: 4.81 | D97: 3.89 | E97: 0 | F97: 3.78 | G97: 5.07 | H97: 5.6 | I97: 6.1 | J97: 5.36 | K97: 1.8 | L97: 0 | M97: 9.1 | N97: 13.54 | O97: 4.7 | P97: 5.8 | Q97: 5 | R97: 4.97 | S97: 9.9 | T97: 12.5 | U97: 6.1 | V97: 8.5
B98: 20 | C98: 3.52 | D98: 0.4 | E98: 0 | F98: 3.94 | G98: 4.63 | H98: 5.2 | I98: 5.33 | J98: 7.48 | K98: 0.2 | L98: 0 | M98: 0 | N98: 1.19 | O98: 4.15 | P98: 3.2 | Q98: 3.5 | R98: 3.9 | S98: 9.8 | T98: 13.8 | U98: 6.1 | V98: 11.8
B99: 21 | C99: 2.65 | D99: 0.4 | E99: 0 | F99: 0 | G99: 4.33 | H99: 5.2 | I99: 1.52 | J99: 8.57 | K99: 0.1 | L99: 0 | M99: 0 | N99: 0 | O99: 3.08 | P99: 3.1 | Q99: 3.5 | R99: 2.23 | S99: 9.3 | T99: 12 | U99: 6.2 | V99: 13.3
B100: 22 | C100: 1.88 | D100: 0 | E100: 0 | F100: 0 | G100: 4.37 | H100: 4.7 | I100: 1.14 | J100: 8.97 | K100: 0.1 | L100: 0 | M100: 0 | N100: 0 | O100: 2.6 | P100: 3 | Q100: 3.6 | R100: 1.29 | S100: 7.9 | T100: 6.7 | U100: 6 | V100: 11.3
B101: 23 | C101: 0.99 | D101: 0 | E101: 0 | F101: 0 | G101: 3.14 | H101: 4.2 | I101: 0 | J101: 7.73 | K101: 0.1 | L101: 0 | M101: 0 | N101: 0 | O101: 2.42 | P101: 2.8 | Q101: 4 | R101: 1.03 | S101: 6.5 | T101: 5.9 | U101: 5.8 | V101: 9
B102: 24 | C102: 0.82 | D102: 0 | E102: 0 | F102: 0 | G102: 2.81 | H102: 3.6 | I102: 2.67 | J102: 4.96 | K102: 0.1 | L102: 0 | M102: 0 | N102: 0 | O102: 2.19 | P102: 1.6 | Q102: 0.2 | R102: 1.06 | S102: 1.3 | T102: 0.3 | U102: 5.6 | V102: 6.6
B103: 日計 | C103: =SUM(C79:C102) -> 100 | D103: 100 | E103: 100 | F103: 100 | G103: 100 | H103: 100 | I103: 100 | J103: 100 | K103: 100 | L103: 100 | M103: 100 | N103: 100 | O103: 100 | P103: 100 | Q103: 100 | R103: 100 | S103: 100 | T103: 100 | U103: 100 | V103: 100 | W103: 0 | X103: 0 | Y103: 0 | Z103: 0
B104: 最大 | C104: =IF(MAX(C79:C102)=0,1,MAX(C79:C102)) -> 7.82 | D104: 10.69 | E104: 16.99 | F104: 27.09 | G104: 5.55 | H104: 5.6 | I104: 7.24 | J104: 8.97 | K104: 9.3 | L104: 11.2 | M104: 16.9 | N104: 17.15 | O104: 6.07 | P104: 6.9 | Q104: 10.3 | R104: 10.07 | S104: 9.9 | T104: 13.8 | U104: 6.2 | V104: 13.3 | W104: 1 | X104: 1 | Y104: 1 | Z104: 1
B105: 出典 | C105: ku 夏期 | D105: ku 夏期 | E105: ku 冬期 | F105: ku 冬期 | G105: ku 夏期 | H105: to | I105: ku 冬期 | J105: ku | K105: ku 夏期 | L105: ku | M105: ku | N105: ku | O105: ku 夏期 | P105: ku 夏期 | Q105: ku 冬期 | R105: ku 冬期 | S105: ku 夏期 | T105: ku | U105: ku | V105: ku 冬期

Sheet 想定負荷
B2: (４）ピ－ク負荷
B4: 時刻 | E4: 夏季 | J4: 冬期
C5: 電力 | D5: 冷房 | E5: 暖房 | F5: 給湯 | G5: 暖房＋給湯 | H5: 電力 | I5: 冷房 | J5: 暖房 | K5: 給湯 | L5: 暖房＋給湯
C6: kW | D6: kW | E6: kW | F6: kW | G6: kW | H6: kW | I6: kW | J6: kW | K6: kW | L6: kW
B7: 1 | C7: 98.95140665 | D7: 0 | E7: 0 | F7: 0 | G7: 0 | H7: 70.80365217 | I7: 0 | J7: 0 | K7: 0 | L7: 0
B8: =B7+1 -> 2 | C8: 93.52941176 | D8: 0 | E8: 0 | F8: 0 | G8: 0 | H8: 66.924 | I8: 0 | J8: 0 | K8: 0 | L8: 0
B9: 3 | C9: 93.52941176 | D9: 0 | E9: 0 | F9: 0 | G9: 0 | H9: 66.924 | I9: 0 | J9: 0 | K9: 0 | L9: 0
B10: 4 | C10: 93.52941176 | D10: 0 | E10: 0 | F10: 0 | G10: 0 | H10: 66.924 | I10: 0 | J10: 0 | K10: 0 | L10: 0
B11: 5 | C11: 93.52941176 | D11: 0 | E11: 0 | F11: 0 | G11: 0 | H11: 66.924 | I11: 0 | J11: 0 | K11: 0 | L11: 0
B12: 6 | C12: 119.2838875 | D12: 0 | E12: 0 | F12: 0 | G12: 0 | H12: 85.35234783 | I12: 0 | J12: 0 | K12: 0 | L12: 0
B13: 7 | C13: 252.1227621 | D13: 0 | E13: 0 | F13: 0.8283419001 | G13: 0.8283419001 | H13: 180.4038261 | I13: 0 | J13: 24.72042378 | K13: 6.981173865 | L13: 31.70159764
B14: 8 | C14: 760.4347826 | D14: 391.8241347 | E14: 0 | F14: 0.1387577802 | G14: 0.1387577802 | H14: 544.1212174 | I14: 0 | J14: 1400 | K14: 1.169435216 | L14: 1401.169435
B15: 9 | C15: 992.2250639 | D15: 2094.836296 | E15: 0 | F15: 0.6895841199 | G15: 0.6895841199 | H15: 709.9763478 | I15: 0 | J15: 1012.713361 | K15: 5.811738649 | L15: 1018.525099
B16: 10 | C16: 1035.601023 | D16: 2007.27783 | E16: 0 | F16: 2.762541261 | G16: 2.762541261 | H16: 741.0135652 | I16: 0 | J16: 666.6274279 | K16: 23.28239203 | L16: 689.9098199
B17: 11 | C17: 1038.31202 | D17: 1963.498597 | E17: 0 | F17: 2.417749201 | G17: 2.417749201 | H17: 742.9533913 | I17: 0 | J17: 847.9105356 | K17: 20.3765227 | L17: 868.2870583
B18: 12 | C18: 1045.089514 | D18: 2029.167446 | E18: 0 | F18: 6.214666641 | G18: 6.214666641 | H18: 747.8029565 | I18: 0 | J18: 864.3908181 | K18: 52.3765227 | L18: 916.7673408
B19: 13 | C19: 1054.578005 | D19: 2051.057063 | E19: 0 | F19: 5.247566961 | G19: 5.247566961 | H19: 754.5923478 | I19: 0 | J19: 847.9105356 | K19: 44.22591362 | L19: 892.1364492
B20: 14 | C20: 1060 | D20: 2029.167446 | E20: 0 | F20: 11.39075232 | G20: 11.39075232 | H20: 758.472 | I20: 0 | J20: 691.3478517 | K20: 96 | L20: 787.3478517
B21: 15 | C21: 1050.511509 | D21: 1963.498597 | E21: 0 | F21: 3.65815966 | G21: 3.65815966 | H21: 751.6826087 | I21: 0 | J21: 674.8675692 | K21: 30.83056478 | L21: 705.6981339
B22: 16 | C22: 1041.023018 | D22: 2340 | E22: 0 | F22: 1.86271808 | G22: 1.86271808 | H22: 744.8932174 | I22: 0 | J22: 749.0288405 | K22: 15.69878184 | L22: 764.7276223
B23: 17 | C23: 898.6956522 | D23: 1963.498597 | E23: 0 | F23: 1.79544158 | G23: 1.79544158 | H23: 643.0523478 | I23: 0 | J23: 460.6238964 | K23: 15.13178295 | L23: 475.7556794
B24: 18 | C24: 745.5242967 | D24: 2029.167446 | E24: 0 | F24: 1.79544158 | G24: 1.79544158 | H24: 533.4521739 | I24: 0 | J24: 0 | K24: 15.13178295 | L24: 15.13178295
B25: 19 | C25: 651.9948849 | D25: 851.5060804 | E25: 0 | F25: 1.589407301 | G25: 1.589407301 | H25: 466.5281739 | I25: 0 | J25: 0 | K25: 13.39534884 | L25: 13.39534884
B26: 20 | C26: 477.1355499 | D26: 87.55846586 | E26: 0 | F26: 1.6566838 | G26: 1.6566838 | H26: 341.4093913 | I26: 0 | J26: 0 | K26: 13.96234773 | L26: 13.96234773
B27: 21 | C27: 359.2071611 | D27: 87.55846586 | E27: 0 | F27: 0 | G27: 0 | H27: 257.0269565 | I27: 0 | J27: 0 | K27: 0 | L27: 0
B28: 22 | C28: 254.8337596 | D28: 0 | E28: 0 | F28: 0 | G28: 0 | H28: 182.3436522 | I28: 0 | J28: 0 | K28: 0 | L28: 0
B29: 23 | C29: 134.1943734 | D29: 0 | E29: 0 | F29: 0 | G29: 0 | H29: 96.0213913 | I29: 0 | J29: 0 | K29: 0 | L29: 0
B30: 24 | C30: 111.1508951 | D30: 0 | E30: 0 | F30: 0 | G30: 0 | H30: 79.53286957 | I30: 0 | J30: 0 | K30: 0 | L30: 0
B31: 計 | C31: =SUM(C7:C30) -> 13554.98721 | D31: 21889.61646 | E31: 0 | F31: 42.04781219 | G31: 42.04781219 | H31: 9699.130435 | I31: 0 | J31: 8240.14126 | K31: 354.3743079 | L31: 8594.515567
B32: 註）夏季：暖房、給湯は８月の平均日負荷
B33: 冬期：電力、冷房は１月の平均日負荷
B36: (５）月別負荷（平均日）
B38: 時刻 | E38: １月 | J38: ２月 | O38: ３月 | T38: ４月 | Y38: ５月 | AD38: ６月
C39: 電力 | D39: 冷房 | E39: 暖房 | F39: 給湯 | G39: 暖房＋給湯 | H39: 電力 | I39: 冷房 | J39: 暖房 | K39: 給湯 | L39: 暖房＋給湯 | M39: 電力 | N39: 冷房 | O39: 暖房 | P39: 給湯 | Q39: 暖房＋給湯 | R39: 電力 | S39: 冷房 | T39: 暖房 | U39: 給湯 | V39: 暖房＋給湯 | W39: 電力 | X39: 冷房 | Y39: 暖房 | Z39: 給湯 | AA39: 暖房＋給湯 | AB39: 電力 | AC39: 冷房 | AD39: 暖房 | AE39: 給湯 | AF39: 暖房＋給湯
C40: kW | D40: kW | E40: kW | F40: kW | G40: kW | H40: kW | I40: kW | J40: kW | K40: kW | L40: kW | M40: kW | N40: kW | O40: kW | P40: kW | Q40: kW | R40: kW | S40: kW | T40: kW | U40: kW | V40: kW | W40: kW | X40: kW | Y40: kW | Z40: kW | AA40: kW | AB40: kW | AC40: kW | AD40: kW | AE40: kW | AF40: kW
B41: 1 | C41: 70.80365217 | D41: 0 | E41: 0 | F41: 0 | G41: 0 | H41: 73.57638261 | I41: 0 | J41: 0 | K41: 0 | L41: 0 | M41: 74.24976 | N41: 0 | O41: 0 | P41: 0 | Q41: 0 | R41: 74.971 | S41: 0 | T41: 0 | U41: 0 | V41: 0 | W41: 83.1324 | X41: 0 | Y41: 0 | Z41: 0 | AA41: 0 | AB41: 81.53808 | AC41: 0 | AD41: 0 | AE41: 0 | AF41: 0
B42: =B41+1 -> 2 | C42: 66.924 | D42: 0 | E42: 0 | F42: 0 | G42: 0 | H42: 69.5448 | I42: 0 | J42: 0 | K42: 0 | L42: 0 | M42: 70.18128 | N42: 0 | O42: 0 | P42: 0 | Q42: 0 | R42: 70.863 | S42: 0 | T42: 0 | U42: 0 | V42: 0 | W42: 78.5772 | X42: 0 | Y42: 0 | Z42: 0 | AA42: 0 | AB42: 77.07024 | AC42: 0 | AD42: 0 | AE42: 0 | AF42: 0
B43: 3 | C43: 66.924 | D43: 0 | E43: 0 | F43: 0 | G43: 0 | H43: 69.5448 | I43: 0 | J43: 0 | K43: 0 | L43: 0 | M43: 70.18128 | N43: 0 | O43: 0 | P43: 0 | Q43: 0 | R43: 70.863 | S43: 0 | T43: 0 | U43: 0 | V43: 0 | W43: 78.5772 | X43: 0 | Y43: 0 | Z43: 0 | AA43: 0 | AB43: 77.07024 | AC43: 0 | AD43: 0 | AE43: 0 | AF43: 0
B44: 4 | C44: 66.924 | D44: 0 | E44: 0 | F44: 0 | G44: 0 | H44: 69.5448 | I44: 0 | J44: 0 | K44: 0 | L44: 0 | M44: 70.18128 | N44: 0 | O44: 0 | P44: 0 | Q44: 0 | R44: 70.863 | S44: 0 | T44: 0 | U44: 0 | V44: 0 | W44: 78.5772 | X44: 0 | Y44: 0 | Z44: 0 | AA44: 0 | AB44: 77.07024 | AC44: 0 | AD44: 0 | AE44: 0 | AF44: 0
B45: 5 | C45: 66.924 | D45: 0 | E45: 0 | F45: 0 | G45: 0 | H45: 69.5448 | I45: 0 | J45: 0 | K45: 0 | L45: 0 | M45: 70.18128 | N45: 0 | O45: 0 | P45: 0 | Q45: 0 | R45: 70.863 | S45: 0 | T45: 0 | U45: 0 | V45: 0 | W45: 78.5772 | X45: 0 | Y45: 0 | Z45: 0 | AA45: 0 | AB45: 77.07024 | AC45: 0 | AD45: 0 | AE45: 0 | AF45: 0
B46: 6 | C46: 85.35234783 | D46: 0 | E46: 0 | F46: 0 | G46: 0 | H46: 88.69481739 | I46: 0 | J46: 0 | K46: 0 | L46: 0 | M46: 89.50656 | N46: 0 | O46: 0 | P46: 0 | Q46: 0 | R46: 90.376 | S46: 0 | T46: 0 | U46: 0 | V46: 0 | W46: 100.2144 | X46: 0 | Y46: 0 | Z46: 0 | AA46: 0 | AB46: 98.29248 | AC46: 0 | AD46: 0 | AE46: 0 | AF46: 0
B47: 7 | C47: 180.4038261 | D47: 0 | E47: 24.74160338 | F47: 2.981997707 | G47: 27.72360109 | H47: 187.4685913 | I47: 0 | J47: 21.48918603 | K47: 2.981997707 | L47: 24.47118374 | M47: 189.18432 | N47: 0 | O47: 16.24350149 | P47: 5.48687578 | Q47: 21.73037727 | R47: 191.022 | S47: 0 | T47: 8.126203457 | U47: 6.858594725 | V47: 14.98479818 | W47: 211.8168 | X47: 0 | Y47: 0 | Z47: 3.117543057 | AA47: 3.117543057 | AB47: 207.75456 | AC47: 0 | AD47: 0 | AE47: 2.74343789 | AF47: 2.74343789
B48: 8 | C48: 544.1212174 | D48: 0 | E48: 1401.199471 | F48: 0.4995224585 | G48: 1401.698994 | H48: 565.4294609 | I48: 0 | J48: 1217.004236 | K48: 0.4995224585 | L48: 1217.503758 | M48: 570.60432 | N48: 0 | O48: 919.9236342 | P48: 0.9191213236 | Q48: 920.8427555 | R48: 576.147 | S48: 0 | T48: 460.2139891 | U48: 1.148901654 | V48: 461.3628908 | W48: 638.8668 | X48: 51.91780919 | Y48: 0 | Z48: 0.5222280248 | AA48: 0.5222280248 | AB48: 626.61456 | AC48: 182.6341382 | AD48: 0 | AE48: 0.4595606618 | AF48: 0.4595606618
B49: 9 | C49: 709.9763478 | D49: 0 | E49: 1013.581018 | F49: 2.482475248 | G49: 1016.063494 | H49: 737.7796174 | I49: 0 | J49: 880.3403212 | K49: 2.482475248 | L49: 882.8227964 | M49: 744.53184 | N49: 0 | O49: 665.4421109 | P49: 4.567754457 | Q49: 670.0098653 | R49: 751.764 | S49: 0 | T49: 332.9034683 | U49: 5.709693071 | V49: 338.6131614 | W49: 833.6016 | X49: 277.5717508 | Y49: 0 | Z49: 2.595315032 | AA49: 2.595315032 | AB49: 817.61472 | AC49: 976.4294425 | AD49: 0 | AE49: 2.283877228 | AF49: 2.283877228
B50: 10 | C50: 741.0135652 | D50: 0 | E50: 667.1985711 | F50: 9.945038037 | G50: 677.1436092 | H50: 770.0322783 | I50: 0 | J50: 579.4917167 | K50: 9.945038037 | L50: 589.4367547 | M50: 777.07968 | N50: 0 | O50: 438.0330901 | P50: 18.29886999 | Q50: 456.3319601 | R50: 784.628 | S50: 0 | T50: 219.1366199 | U50: 22.87358748 | V50: 242.0102074 | W50: 870.0432 | X50: 265.9700057 | Y50: 0 | Z50: 10.39708522 | AA50: 10.39708522 | AB50: 853.35744 | AC50: 935.6173446 | AD50: 0 | AE50: 9.149434994 | AF50: 9.149434994
B51: 11 | C51: 742.9533913 | D51: 0 | E51: 848.6369959 | F51: 8.703800413 | G51: 857.3407963 | H51: 772.0480696 | I51: 0 | J51: 737.079081 | K51: 8.703800413 | L51: 745.7828814 | M51: 779.11392 | N51: 0 | O51: 557.152101 | P51: 16.01499276 | Q51: 573.1670937 | R51: 786.682 | S51: 0 | T51: 278.7287786 | U51: 20.01874095 | V51: 298.7475195 | W51: 872.3208 | X51: 260.1691332 | Y51: 0 | Z51: 9.099427704 | AA51: 9.099427704 | AB51: 855.59136 | AC51: 915.2112957 | AD51: 0 | AE51: 8.00749638 | AF51: 8.00749638
B52: 12 | C52: 747.8029565 | D52: 0 | E52: 865.1313982 | F52: 22.37255132 | G52: 887.5039495 | H52: 777.0875478 | I52: 0 | J52: 751.405205 | K52: 22.37255132 | L52: 773.7777563 | M52: 784.19952 | N52: 0 | O52: 567.981102 | P52: 41.16549443 | Q52: 609.1465964 | R52: 791.817 | S52: 0 | T52: 284.1462476 | U52: 51.45686804 | V52: 335.6031156 | W52: 878.0148 | X52: 268.870442 | Y52: 0 | Z52: 23.38948547 | AA52: 23.38948547 | AB52: 861.17616 | AC52: 945.8203691 | AD52: 0 | AE52: 20.58274722 | AF52: 20.58274722
B53: 13 | C53: 754.5923478 | D53: 0 | E53: 848.6369959 | F53: 18.89103116 | G53: 867.5280271 | H53: 784.1428174 | I53: 0 | J53: 737.079081 | K53: 18.89103116 | L53: 755.9701121 | M53: 791.31936 | N53: 0 | O53: 557.152101 | P53: 34.75949733 | Q53: 591.9115983 | R53: 799.006 | S53: 0 | T53: 278.7287786 | U53: 43.44937166 | V53: 322.1781502 | W53: 885.9864 | X53: 271.7708783 | Y53: 0 | Z53: 19.74971439 | AA53: 19.74971439 | AB53: 868.99488 | AC53: 956.0233936 | AD53: 0 | AE53: 17.37974866 | AF53: 17.37974866
B54: 14 | C54: 758.472 | D54: 0 | E54: 691.9401745 | F54: 41.00625273 | G54: 732.9464272 | H54: 788.1744 | I54: 0 | J54: 600.9809027 | K54: 41.00625273 | L54: 641.9871555 | M54: 795.38784 | N54: 0 | O54: 454.2765916 | P54: 75.45150502 | Q54: 529.7280966 | R54: 803.114 | S54: 0 | T54: 227.2628234 | U54: 94.31438127 | V54: 321.5772046 | W54: 890.5416 | X54: 268.870442 | Y54: 0 | Z54: 42.8701733 | AA54: 42.8701733 | AB54: 873.46272 | AC54: 945.8203691 | AD54: 0 | AE54: 37.72575251 | AF54: 37.72575251
B55: 15 | C55: 751.6826087 | D55: 0 | E55: 675.4457723 | F55: 13.16922845 | G55: 688.6150007 | H55: 781.1191304 | I55: 0 | J55: 586.6547787 | K55: 13.16922845 | L55: 599.8240072 | M55: 788.268 | N55: 0 | O55: 443.4475906 | P55: 24.23138035 | Q55: 467.6789709 | R55: 795.925 | S55: 0 | T55: 221.8453544 | U55: 30.28922544 | V55: 252.1345798 | W55: 882.57 | X55: 260.1691332 | Y55: 0 | Z55: 13.76782974 | AA55: 13.76782974 | AB55: 865.644 | AC55: 915.2112957 | AD55: 0 | AE55: 12.11569017 | AF55: 12.11569017
B56: 16 | C56: 744.8932174 | D56: 0 | E56: 749.6705824 | F56: 6.705710579 | G56: 756.376293 | H56: 774.0638609 | I56: 0 | J56: 651.1223368 | K56: 6.705710579 | L56: 657.8280474 | M56: 781.14816 | N56: 0 | O56: 492.178095 | P56: 12.33850746 | Q56: 504.5166025 | R56: 788.736 | S56: 0 | T56: 246.2239648 | U56: 15.42313433 | V56: 261.6470991 | W56: 874.5984 | X56: 310.056637 | Y56: 0 | Z56: 7.010515605 | AA56: 7.010515605 | AB56: 857.82528 | AC56: 1090.703317 | AD56: 0 | AE56: 6.169253732 | AF56: 6.169253732
B57: 17 | C57: 643.0523478 | D57: 0 | E57: 461.018543 | F57: 6.463517872 | G57: 467.4820608 | H57: 668.2348174 | I57: 0 | J57: 400.4151664 | K57: 6.463517872 | L57: 406.8786843 | M57: 674.35056 | N57: 0 | O57: 302.6705777 | P57: 11.89287288 | Q57: 314.5634506 | R57: 680.901 | S57: 0 | T57: 151.4182578 | U57: 14.8660911 | V57: 166.2843489 | W57: 755.0244 | X57: 260.1691332 | Y57: 0 | Z57: 6.757314139 | AA57: 6.757314139 | AB57: 740.54448 | AC57: 915.2112957 | AD57: 0 | AE57: 5.946436442 | AF57: 5.946436442
B58: 18 | C58: 533.4521739 | D58: 0 | E58: 0 | F58: 6.463517872 | G58: 6.463517872 | H58: 554.3426087 | I58: 0 | J58: 0 | K58: 6.463517872 | L58: 6.463517872 | M58: 559.416 | N58: 0 | O58: 0 | P58: 11.89287288 | Q58: 11.89287288 | R58: 564.85 | S58: 0 | T58: 0 | U58: 14.8660911 | V58: 14.8660911 | W58: 626.34 | X58: 268.870442 | Y58: 0 | Z58: 6.757314139 | AA58: 6.757314139 | AB58: 614.328 | AC58: 945.8203691 | AD58: 0 | AE58: 5.946436442 | AF58: 5.946436442
B59: 19 | C59: 466.5281739 | D59: 0 | E59: 0 | F59: 5.721802706 | G59: 5.721802706 | H59: 484.7978087 | I59: 0 | J59: 0 | K59: 5.721802706 | L59: 5.721802706 | M59: 489.23472 | N59: 0 | O59: 0 | P59: 10.52811698 | Q59: 10.52811698 | R59: 493.987 | S59: 0 | T59: 0 | U59: 13.16014622 | V59: 13.16014622 | W59: 547.7628 | X59: 112.8269708 | Y59: 0 | Z59: 5.981884647 | AA59: 5.981884647 | AB59: 537.25776 | AC59: 396.8976522 | AD59: 0 | AE59: 5.26405849 | AF59: 5.26405849
B60: 20 | C60: 341.4093913 | D60: 0 | E60: 0 | F60: 5.963995413 | G60: 5.963995413 | H60: 354.7792696 | I60: 0 | J60: 0 | K60: 5.963995413 | L60: 5.963995413 | M60: 358.02624 | N60: 0 | O60: 0 | P60: 10.97375156 | Q60: 10.97375156 | R60: 361.504 | S60: 0 | T60: 0 | U60: 13.71718945 | V60: 13.71718945 | W60: 400.8576 | X60: 11.60174507 | Y60: 0 | Z60: 6.235086114 | AA60: 6.235086114 | AB60: 393.16992 | AC60: 40.81209791 | AD60: 0 | AE60: 5.48687578 | AF60: 5.48687578
B61: 21 | C61: 257.0269565 | D61: 0 | E61: 0 | F61: 0 | G61: 0 | H61: 267.0923478 | I61: 0 | J61: 0 | K61: 0 | L61: 0 | M61: 269.5368 | N61: 0 | O61: 0 | P61: 0 | Q61: 0 | R61: 272.155 | S61: 0 | T61: 0 | U61: 0 | V61: 0 | W61: 301.782 | X61: 11.60174507 | Y61: 0 | Z61: 0 | AA61: 0 | AB61: 295.9944 | AC61: 40.81209791 | AD61: 0 | AE61: 0 | AF61: 0
B62: 22 | C62: 182.3436522 | D62: 0 | E62: 0 | F62: 0 | G62: 0 | H62: 189.4843826 | I62: 0 | J62: 0 | K62: 0 | L62: 0 | M62: 191.21856 | N62: 0 | O62: 0 | P62: 0 | Q62: 0 | R62: 193.076 | S62: 0 | T62: 0 | U62: 0 | V62: 0 | W62: 214.0944 | X62: 0 | Y62: 0 | Z62: 0 | AA62: 0 | AB62: 209.98848 | AC62: 0 | AD62: 0 | AE62: 0 | AF62: 0
B63: 23 | C63: 96.0213913 | D63: 0 | E63: 0 | F63: 0 | G63: 0 | H63: 99.78166957 | I63: 0 | J63: 0 | K63: 0 | L63: 0 | M63: 100.69488 | N63: 0 | O63: 0 | P63: 0 | Q63: 0 | R63: 101.673 | S63: 0 | T63: 0 | U63: 0 | V63: 0 | W63: 112.7412 | X63: 0 | Y63: 0 | Z63: 0 | AA63: 0 | AB63: 110.57904 | AC63: 0 | AD63: 0 | AE63: 0 | AF63: 0
B64: 24 | C64: 79.53286957 | D64: 0 | E64: 0 | F64: 0 | G64: 0 | H64: 82.64744348 | I64: 0 | J64: 0 | K64: 0 | L64: 0 | M64: 83.40384 | N64: 0 | O64: 0 | P64: 0 | Q64: 0 | R64: 84.214 | S64: 0 | T64: 0 | U64: 0 | V64: 0 | W64: 93.3816 | X64: 0 | Y64: 0 | Z64: 0 | AA64: 0 | AB64: 91.59072 | AC64: 0 | AD64: 0 | AE64: 0 | AF64: 0
B65: 計 | C65: =SUM(C41:C64) -> 9699.130435 | D65: 0 | E65: 8247.201126 | F65: 151.370442 | G65: 8398.571568 | H65: 10078.95652 | I65: 0 | J65: 7163.062011 | K65: 151.370442 | L65: 7314.432453 | M65: 10171.2 | N65: 0 | O65: 5414.500495 | P65: 278.5216132 | Q65: 5693.022109 | R65: 10270 | S65: 0 | T65: 2708.734486 | U65: 348.1520165 | V65: 3056.886502 | W65: 11388 | X65: 2900.436267 | Y65: 0 | Z65: 158.2509166 | AA65: 158.2509166 | AB65: 11169.6 | AC65: 10203.02448 | AD65: 0 | AE65: 139.2608066 | AF65: 139.2608066
B68: 時刻 | E68: ７月 | J68: ８月 | O68: ９月 | T68: １０月 | Y68: １１月 | AD68: １２月
C69: 電力 | D69: 冷房 | E69: 暖房 | F69: 給湯 | G69: 暖房＋給湯 | H69: 電力 | I69: 冷房 | J69: 暖房 | K69: 給湯 | L69: 暖房＋給湯 | M69: 電力 | N69: 冷房 | O69: 暖房 | P69: 給湯 | Q69: 暖房＋給湯 | R69: 電力 | S69: 冷房 | T69: 暖房 | U69: 給湯 | V69: 暖房＋給湯 | W69: 電力 | X69: 冷房 | Y69: 暖房 | Z69: 給湯 | AA69: 暖房＋給湯 | AB69: 電力 | AC69: 冷房 | AD69: 暖房 | AE69: 給湯 | AF69: 暖房＋給湯
C70: kW | D70: kW | E70: kW | F70: kW | G70: kW | H70: kW | I70: kW | J70: kW | K70: kW | L70: kW | M70: kW | N70: kW | O70: kW | P70: kW | Q70: kW | R70: kW | S70: kW | T70: kW | U70: kW | V70: kW | W70: kW | X70: kW | Y70: kW | Z70: kW | AA70: kW | AB70: kW | AC70: kW | AD70: kW | AE70: kW | AF70: kW
B71: 1 | C71: 88.2132 | D71: 0 | E71: 0 | F71: 0 | G71: 0 | H71: 97.73874783 | I71: 0 | J71: 0 | K71: 0 | L71: 0 | M71: 88.0341913 | N71: 0 | O71: 0 | P71: 0 | Q71: 0 | R71: 78.896064 | S71: 0 | T71: 0 | U71: 0 | V71: 0 | W71: 71.49683478 | X71: 0 | Y71: 0 | Z71: 0 | AA71: 0 | AB71: 72.8832 | AC71: 0 | AD71: 0 | AE71: 0 | AF71: 0
B72: =B71+1 -> 2 | C72: 83.3796 | D72: 0 | E72: 0 | F72: 0 | G72: 0 | H72: 92.3832 | I72: 0 | J72: 0 | K72: 0 | L72: 0 | M72: 83.2104 | N72: 0 | O72: 0 | P72: 0 | Q72: 0 | R72: 74.572992 | S72: 0 | T72: 0 | U72: 0 | V72: 0 | W72: 67.5792 | X72: 0 | Y72: 0 | Z72: 0 | AA72: 0 | AB72: 68.8896 | AC72: 0 | AD72: 0 | AE72: 0 | AF72: 0
B73: 3 | C73: 83.3796 | D73: 0 | E73: 0 | F73: 0 | G73: 0 | H73: 92.3832 | I73: 0 | J73: 0 | K73: 0 | L73: 0 | M73: 83.2104 | N73: 0 | O73: 0 | P73: 0 | Q73: 0 | R73: 74.572992 | S73: 0 | T73: 0 | U73: 0 | V73: 0 | W73: 67.5792 | X73: 0 | Y73: 0 | Z73: 0 | AA73: 0 | AB73: 68.8896 | AC73: 0 | AD73: 0 | AE73: 0 | AF73: 0
B74: 4 | C74: 83.3796 | D74: 0 | E74: 0 | F74: 0 | G74: 0 | H74: 92.3832 | I74: 0 | J74: 0 | K74: 0 | L74: 0 | M74: 83.2104 | N74: 0 | O74: 0 | P74: 0 | Q74: 0 | R74: 74.572992 | S74: 0 | T74: 0 | U74: 0 | V74: 0 | W74: 67.5792 | X74: 0 | Y74: 0 | Z74: 0 | AA74: 0 | AB74: 68.8896 | AC74: 0 | AD74: 0 | AE74: 0 | AF74: 0
B75: 5 | C75: 83.3796 | D75: 0 | E75: 0 | F75: 0 | G75: 0 | H75: 92.3832 | I75: 0 | J75: 0 | K75: 0 | L75: 0 | M75: 83.2104 | N75: 0 | O75: 0 | P75: 0 | Q75: 0 | R75: 74.572992 | S75: 0 | T75: 0 | U75: 0 | V75: 0 | W75: 67.5792 | X75: 0 | Y75: 0 | Z75: 0 | AA75: 0 | AB75: 68.8896 | AC75: 0 | AD75: 0 | AE75: 0 | AF75: 0
B76: 6 | C76: 106.3392 | D76: 0 | E76: 0 | F76: 0 | G76: 0 | H76: 117.8220522 | I76: 0 | J76: 0 | K76: 0 | L76: 0 | M76: 106.1234087 | N76: 0 | O76: 0 | P76: 0 | Q76: 0 | R76: 95.107584 | S76: 0 | T76: 0 | U76: 0 | V76: 0 | W76: 86.18796522 | X76: 0 | Y76: 0 | Z76: 0 | AA76: 0 | AB76: 87.8592 | AC76: 0 | AD76: 0 | AE76: 0 | AF76: 0
B77: 7 | C77: 224.7624 | D77: 0 | E77: 0 | F77: 2.637921048 | G77: 2.637921048 | H77: 249.0329739 | I77: 0 | J77: 0 | K77: 2.981997707 | L77: 2.981997707 | M77: 224.3062957 | N77: 0 | O77: 0 | P77: 2.981997707 | Q77: 2.981997707 | R77: 201.022848 | S77: 0 | T77: 0 | U77: 2.74343789 | V77: 2.74343789 | W77: 182.1700174 | X77: 0 | Y77: 7.317939028 | Z77: 5.367595872 | AA77: 12.6855349 | AB77: 185.7024 | AC77: 0 | AD77: 13.91473195 | AE77: 2.286198242 | AF77: 16.20093019
B78: 8 | C78: 677.9124 | D78: 309.6424597 | E78: 0 | F78: 0.4418852517 | G78: 0.4418852517 | H78: 751.1155826 | I78: 389.1762662 | J78: 0 | K78: 0.4995224585 | L78: 0.4995224585 | M78: 676.5367304 | N78: 250.7095803 | O78: 0 | P78: 0.4995224585 | Q78: 0.4995224585 | R78: 606.310848 | S78: 26.45689174 | T78: 0 | U78: 0.4595606618 | V78: 0.4595606618 | W78: 549.4482783 | X78: 0 | Y78: 414.4392803 | Z78: 0.8991404252 | AA78: 415.3384207 | AB78: 560.1024 | AC78: 0 | AD78: 788.0376526 | AE78: 0.3829672182 | AF78: 788.4206198
B79: 9 | C79: 884.5488 | D79: 1655.462759 | E79: 0 | F79: 2.196035796 | G79: 2.196035796 | H79: 980.0652522 | I79: 2080.679814 | J79: 0 | K79: 2.482475248 | L79: 2.482475248 | M79: 882.7538087 | N79: 1340.385857 | O79: 0 | P79: 2.482475248 | Q79: 2.482475248 | R79: 791.122176 | S79: 141.4482983 | T79: 0 | U79: 2.283877228 | V79: 2.283877228 | W79: 716.9271652 | X79: 0 | Y79: 299.7915688 | Z79: 4.468455447 | AA79: 304.2600243 | AB79: 730.8288 | AC79: 0 | AD79: 570.0401854 | AE79: 1.903231024 | AF79: 571.9434165
B80: 10 | C80: 923.2176 | D80: 1586.268914 | E80: 0 | F80: 8.797533648 | G80: 8.797533648 | H80: 1022.909635 | I80: 1993.713051 | J80: 0 | K80: 9.945038037 | L80: 9.945038037 | M80: 921.3441391 | N80: 1284.36137 | O80: 0 | P80: 9.945038037 | Q80: 9.945038037 | R80: 825.706752 | S80: 135.5361437 | T80: 0 | U80: 9.149434994 | V80: 9.149434994 | W80: 748.2682435 | X80: 0 | Y80: 197.3404224 | Z80: 17.90106847 | AA80: 215.2414909 | AB80: 762.7776 | AC80: 0 | AD80: 375.2339382 | AE80: 7.624529161 | AF80: 382.8584673
B81: 11 | C81: 925.6344 | D81: 1551.671991 | E81: 0 | F81: 7.69951575 | G81: 7.69951575 | H81: 1025.587409 | I81: 1950.229669 | J81: 0 | K81: 8.703800413 | L81: 8.703800413 | M81: 923.7560348 | N81: 1256.349126 | O81: 0 | P81: 8.703800413 | Q81: 8.703800413 | R81: 827.868288 | S81: 132.5800664 | T81: 0 | U81: 8.00749638 | V81: 8.00749638 | W81: 750.2270609 | X81: 0 | Y81: 251.0053086 | Z81: 15.66684074 | AA81: 266.6721494 | AB81: 764.7744 | AC81: 0 | AD81: 477.2753058 | AE81: 6.67291365 | AF81: 483.9482194
B82: 12 | C82: 931.6764 | D82: 1603.567375 | E82: 0 | F82: 19.79110309 | G82: 19.79110309 | H82: 1032.281843 | I82: 2015.454742 | J82: 0 | K82: 22.37255132 | L82: 22.37255132 | M82: 929.7857739 | N82: 1298.367492 | O82: 0 | P82: 22.37255132 | Q82: 22.37255132 | R82: 833.272128 | S82: 137.0141824 | T82: 0 | U82: 20.58274722 | V82: 20.58274722 | W82: 755.1241043 | X82: 0 | Y82: 255.8839347 | Z82: 40.27059238 | AA82: 296.154527 | AB82: 769.7664 | AC82: 0 | AD82: 486.5517938 | AE82: 17.15228935 | AF82: 503.7040831
B83: 13 | C83: 940.1352 | D83: 1620.865837 | E83: 0 | F83: 16.71129679 | G83: 16.71129679 | H83: 1041.654052 | I83: 2037.196433 | J83: 0 | K83: 18.89103116 | L83: 18.89103116 | M83: 938.2274087 | N83: 1312.373613 | O83: 0 | P83: 18.89103116 | Q83: 18.89103116 | R83: 840.837504 | S83: 138.492221 | T83: 0 | U83: 17.37974866 | V83: 17.37974866 | W83: 761.9799652 | X83: 0 | Y83: 251.0053086 | Z83: 34.00385608 | AA83: 285.0091647 | AB83: 776.7552 | AC83: 0 | AD83: 477.2753058 | AE83: 14.48312389 | AF83: 491.7584297
B84: 14 | C84: 944.9688 | D84: 1603.567375 | E84: 0 | F84: 36.27476203 | G84: 36.27476203 | H84: 1047.0096 | I84: 2015.454742 | J84: 0 | K84: 41.00625273 | L84: 41.00625273 | M84: 943.0512 | N84: 1298.367492 | O84: 0 | P84: 41.00625273 | Q84: 41.00625273 | R84: 845.160576 | S84: 137.0141824 | T84: 0 | U84: 37.72575251 | V84: 37.72575251 | W84: 765.8976 | X84: 0 | Y84: 204.6583615 | Z84: 73.81125491 | AA84: 278.4696164 | AB84: 780.7488 | AC84: 0 | AD84: 389.1486701 | AE84: 31.43812709 | AF84: 420.5867972
B85: 15 | C85: 936.51 | D85: 1551.671991 | E85: 0 | F85: 11.64970209 | G85: 11.64970209 | H85: 1037.637391 | I85: 1950.229669 | J85: 0 | K85: 13.16922845 | L85: 13.16922845 | M85: 934.6095652 | N85: 1256.349126 | O85: 0 | P85: 13.16922845 | Q85: 13.16922845 | R85: 837.5952 | S85: 132.5800664 | T85: 0 | U85: 12.11569017 | V85: 12.11569017 | W85: 759.0417391 | X85: 0 | Y85: 199.7797355 | Z85: 23.70461121 | AA85: 223.4843467 | AB85: 773.76 | AC85: 0 | AD85: 379.8721822 | AE85: 10.09640848 | AF85: 389.9685906
B86: 16 | C86: 928.0512 | D86: 1849.205527 | E86: 0 | F86: 5.931974743 | G86: 5.931974743 | H86: 1028.265183 | I86: 2324.186752 | J86: 0 | K86: 6.705710579 | L86: 6.705710579 | M86: 926.1679304 | N86: 1497.254421 | O86: 0 | P86: 6.705710579 | Q86: 6.705710579 | R86: 830.029824 | S86: 158.0023311 | T86: 0 | U86: 6.169253732 | V86: 6.169253732 | W86: 752.1858783 | X86: 0 | Y86: 221.7335525 | Z86: 12.07027904 | AA86: 233.8038316 | AB86: 766.7712 | AC86: 0 | AD86: 421.616378 | AE86: 5.141044777 | AF86: 426.7574228
B87: 17 | C87: 801.1692 | D87: 1551.671991 | E87: 0 | F87: 5.717727348 | G87: 5.717727348 | H87: 887.6820522 | I87: 1950.229669 | J87: 0 | K87: 6.463517872 | L87: 6.463517872 | M87: 799.5434087 | N87: 1256.349126 | O87: 0 | P87: 6.463517872 | Q87: 6.463517872 | R87: 716.549184 | S87: 132.5800664 | T87: 0 | U87: 5.946436442 | V87: 5.946436442 | W87: 649.3479652 | X87: 0 | Y87: 136.3575972 | Z87: 11.63433217 | AA87: 147.9919294 | AB87: 661.9392 | AC87: 0 | AD87: 259.2778386 | AE87: 4.955363702 | AF87: 264.2332023
B88: 18 | C88: 664.62 | D88: 1603.567375 | E88: 0 | F88: 5.717727348 | G88: 5.717727348 | H88: 736.3878261 | I88: 2015.454742 | J88: 0 | K88: 6.463517872 | L88: 6.463517872 | M88: 663.2713043 | N88: 1298.367492 | O88: 0 | P88: 6.463517872 | Q88: 6.463517872 | R88: 594.4224 | S88: 137.0141824 | T88: 0 | U88: 5.946436442 | V88: 5.946436442 | W88: 538.6747826 | X88: 0 | Y88: 0 | Z88: 11.63433217 | AA88: 11.63433217 | AB88: 549.12 | AC88: 0 | AD88: 0 | AE88: 4.955363702 | AF88: 4.955363702
B89: 19 | C89: 581.2404 | D89: 672.9101499 | E89: 0 | F89: 5.061594701 | G89: 5.061594701 | H89: 644.0046261 | I89: 845.7517741 | J89: 0 | K89: 5.721802706 | L89: 5.721802706 | M89: 580.0609043 | N89: 544.8381383 | O89: 0 | P89: 5.721802706 | Q89: 5.721802706 | R89: 519.849408 | S89: 57.49570329 | T89: 0 | U89: 5.26405849 | V89: 5.26405849 | W89: 471.0955826 | X89: 0 | Y89: 0 | Z89: 10.29924487 | AA89: 10.29924487 | AB89: 480.2304 | AC89: 0 | AD89: 0 | AE89: 4.386715408 | AF89: 4.386715408
B90: 20 | C90: 425.3568 | D90: 69.19384574 | E90: 0 | F90: 5.275842096 | G90: 5.275842096 | H90: 471.2882087 | I90: 86.9667634 | J90: 0 | K90: 5.963995413 | L90: 5.963995413 | M90: 424.4936348 | N90: 56.02448723 | O90: 0 | P90: 5.963995413 | Q90: 5.963995413 | R90: 380.430336 | S90: 5.912154579 | T90: 0 | U90: 5.48687578 | V90: 5.48687578 | W90: 344.7518609 | X90: 0 | Y90: 0 | Z90: 10.73519174 | AA90: 10.73519174 | AB90: 351.4368 | AC90: 0 | AD90: 0 | AE90: 4.572396483 | AF90: 4.572396483
B91: 21 | C91: 320.226 | D91: 69.19384574 | E91: 0 | F91: 0 | G91: 0 | H91: 354.8050435 | I91: 86.9667634 | J91: 0 | K91: 0 | L91: 0 | M91: 319.5761739 | N91: 56.02448723 | O91: 0 | P91: 0 | Q91: 0 | R91: 286.40352 | S91: 5.912154579 | T91: 0 | U91: 0 | V91: 0 | W91: 259.5433043 | X91: 0 | Y91: 0 | Z91: 0 | AA91: 0 | AB91: 264.576 | AC91: 0 | AD91: 0 | AE91: 0 | AF91: 0
B92: 22 | C92: 227.1792 | D92: 0 | E92: 0 | F92: 0 | G92: 0 | H92: 251.7107478 | I92: 0 | J92: 0 | K92: 0 | L92: 0 | M92: 226.7181913 | N92: 0 | O92: 0 | P92: 0 | Q92: 0 | R92: 203.184384 | S92: 0 | T92: 0 | U92: 0 | V92: 0 | W92: 184.1288348 | X92: 0 | Y92: 0 | Z92: 0 | AA92: 0 | AB92: 187.6992 | AC92: 0 | AD92: 0 | AE92: 0 | AF92: 0
B93: 23 | C93: 119.6316 | D93: 0 | E93: 0 | F93: 0 | G93: 0 | H93: 132.5498087 | I93: 0 | J93: 0 | K93: 0 | L93: 0 | M93: 119.3888348 | N93: 0 | O93: 0 | P93: 0 | Q93: 0 | R93: 106.996032 | S93: 0 | T93: 0 | U93: 0 | V93: 0 | W93: 96.96146087 | X93: 0 | Y93: 0 | Z93: 0 | AA93: 0 | AB93: 98.8416 | AC93: 0 | AD93: 0 | AE93: 0 | AF93: 0
B94: 24 | C94: 99.0888 | D94: 0 | E94: 0 | F94: 0 | G94: 0 | H94: 109.7887304 | I94: 0 | J94: 0 | K94: 0 | L94: 0 | M94: 98.88772174 | N94: 0 | O94: 0 | P94: 0 | Q94: 0 | R94: 88.622976 | S94: 0 | T94: 0 | U94: 0 | V94: 0 | W94: 80.31151304 | X94: 0 | Y94: 0 | Z94: 0 | AA94: 0 | AB94: 81.8688 | AC94: 0 | AD94: 0 | AE94: 0 | AF94: 0
B95: 計 | C95: =SUM(C71:C94) -> 12084 | D95: 17298.46144 | E95: 0 | F95: 133.9046217 | G95: 133.9046217 | H95: 13388.86957 | I95: 21741.69085 | J95: 0 | K95: 151.370442 | L95: 151.370442 | M95: 12059.47826 | N95: 14006.12181 | O95: 0 | P95: 151.370442 | Q95: 151.370442 | R95: 10807.68 | S95: 1478.038645 | T95: 0 | U95: 139.2608066 | V95: 139.2608066 | W95: 9794.086957 | X95: 0 | Y95: 2439.313009 | Z95: 272.4667955 | AA95: 2711.779805 | AB95: 9984 | AC95: 0 | AD95: 4638.243982 | AE95: 116.0506722 | AF95: 4754.294655
B158: ※ピーク日負荷と平均日負荷の関係を既存データ、運転日数等を基に再確認してください。
